fUST/lending_fUST_20240723
["ID","MTS","AMOUNT","RATE_DAILY","PERIOD"]
[332981620,1721721042015,-564.54,0.00013871,2]
[332981622,1721721042025,-500.0,0.00013871,2]
[332981625,1721721042036,-500.0,0.00013871,2]
[332981627,1721721042046,-500.0,0.00013871,2]
[332981629,1721721042057,-500.0,0.00013871,2]
[332981631,1721721042066,-500.0,0.00013871,2]
[332981633,1721721042076,-500.0,0.00013871,2]
[332981635,1721721042085,-500.0,0.00013871,2]
[332981637,1721721042095,-500.0,0.00013871,2]
[332981639,1721721042105,-500.0,0.00013871,2]
[332981641,1721721042116,-500.0,0.00013871,2]
[332981643,1721721042127,-500.0,0.00013871,2]
[332981645,1721721042138,-532.06029466,0.00013871,2]
[332981647,1721721042148,-500.0,0.00013871,2]
[332981650,1721721042159,-500.0,0.00013871,2]
[332981652,1721721042168,-500.0,0.00013871,2]
[332981654,1721721042177,-500.0,0.00013871,2]
[332981657,1721721042187,-500.0,0.00013871,2]
[332981659,1721721042195,-500.0,0.00013871,2]
[332981661,1721721042205,-500.0,0.00013871,2]
[332981663,1721721042214,-500.0,0.00013871,2]
[332981666,1721721042224,-261.3889557,0.00013872,2]
[332981668,1721721042234,-488.32350273,0.00013872,2]
[332981670,1721721042244,-15130.458466,0.00013946,2]
[332981672,1721721042253,-624.728192,0.00013951,2]
[332981674,1721721042262,-15130.458466,0.00013951,2]
[332981675,1721721042271,-3311.61,0.00013956,2]
[332981677,1721721042280,-2886.36,0.00013956,2]
[332981679,1721721042290,-1451.54,0.00013956,2]
[332981681,1721721042299,-2668.4,0.00013956,2]
[332981684,1721721042308,-541.63,0.00013956,2]
[332981687,1721721042318,-743.73,0.00013956,2]
[332981690,1721721042327,-500.0,0.00013957,2]
[332981693,1721721042336,-369.26016467,0.00013957,2]
[332981696,1721721042345,-639.4124762,0.00013957,2]
[332981699,1721721042355,-639.4124762,0.00013957,2]
[332981702,1721721042364,-500.0,0.00013957,2]
[332981705,1721721042373,-639.4124762,0.00013957,2]
[332981708,1721721042382,-639.4124762,0.00013957,2]
[332981711,1721721042392,-639.4124762,0.00013957,2]
[332981715,1721721042401,-639.4124762,0.00013957,2]
[332981718,1721721042410,-639.4124762,0.00013957,2]
[332981720,1721721042419,-639.4124762,0.00013957,2]
[332981722,1721721042428,-500.0,0.00013957,2]
[332981724,1721721042437,-639.4124762,0.00013957,2]
[332981726,1721721042447,-650.96249668,0.00013957,2]
[332981729,1721721042456,-500.0,0.00013957,2]
[332981732,1721721042465,-639.4124762,0.00013957,2]
[332981735,1721721042474,-639.4124762,0.00013957,2]
[332981739,1721721042483,-500.0,0.00013957,2]
[332981743,1721721042493,-639.4124762,0.00013957,2]
[332981747,1721721042502,-639.4124762,0.00013957,2]
[332981751,1721721042512,-639.4124762,0.00013957,2]
[332981754,1721721042521,-639.4124762,0.00013957,2]
[332981757,1721721042530,-639.4124762,0.00013957,2]
[332981759,1721721042539,-639.4124762,0.00013957,2]
[332981761,1721721042547,-639.4124762,0.00013957,2]
[332981764,1721721042562,-639.4124762,0.00013957,2]
[332981767,1721721042571,-639.4124762,0.00013957,2]
[332981770,1721721042581,-500.0,0.00013958,2]
[332981773,1721721042590,-500.0,0.00013958,2]
[332981776,1721721042601,-500.0,0.00013958,2]
[332981779,1721721042610,-500.0,0.00013958,2]
[332981782,1721721042619,-500.0,0.00013958,2]
[332981785,1721721042628,-500.0,0.00013958,2]
[332981787,1721721042640,-500.0,0.00013958,2]
[332981790,1721721042649,-500.0,0.00013958,2]
[332981793,1721721042659,-500.0,0.00013958,2]
[332981796,1721721042668,-500.0,0.00013958,2]
[332981799,1721721042677,-592.22,0.00013958,2]
[332981802,1721721042687,-500.0,0.00013958,2]
[332981804,1721721042696,-500.0,0.00013958,2]
[332981806,1721721042706,-500.0,0.00013958,2]
[332981808,1721721042715,-500.0,0.00013958,2]
[332981810,1721721042724,-500.0,0.00013958,2]
[332981812,1721721042733,-500.0,0.00013958,2]
[332981814,1721721042743,-500.0,0.00013958,2]
[332981816,1721721042752,-501.43167891,0.00013958,2]
[332981817,1721721042761,-500.0,0.00013958,2]
[332981819,1721721042770,-500.0,0.00013958,2]
[332981821,1721721042780,-506.1306222,0.00013958,2]
[332981823,1721721042789,-829.1,0.00013959,2]
[332981825,1721721042798,-592.22,0.00013959,2]
[332981827,1721721042807,-151.0,0.0001396,2]
[332981829,1721721042816,-151.0,0.0001396,2]
[332981831,1721721042826,-151.0,0.0001396,2]
[332981833,1721721042835,-151.0,0.0001396,2]
[332981835,1721721042845,-829.1,0.0001396,2]
[332981837,1721721042854,-829.1,0.0001396,2]
[332981839,1721721042863,-829.1,0.0001396,2]
[332981841,1721721042872,-829.1,0.0001396,2]
[332981843,1721721042882,-829.1,0.0001396,2]
[332981845,1721721042893,-829.1,0.0001396,2]
[332981847,1721721042902,-829.1,0.0001396,2]
[332981849,1721721042914,-829.1,0.0001396,2]
[332981851,1721721042923,-829.1,0.0001396,2]
[332981853,1721721042932,-829.1,0.0001396,2]
[332981855,1721721042941,-829.1,0.0001396,2]
[332981857,1721721042951,-829.18,0.0001396,2]
[332981859,1721721042961,-15130.458466,0.00013961,2]
[332981861,1721721042971,-1696.28578642,0.00013961,2]
[332981863,1721721042980,-201.145051,0.00013961,2]
[332981866,1721721042990,-151.0,0.00013961,2]
[332981870,1721721042999,-592.22,0.00013961,2]
[332981874,1721721043010,-592.22,0.00013961,2]
[332981877,1721721043020,-592.22,0.00013961,2]
[332981880,1721721043030,-592.22,0.00013961,2]
[332981883,1721721043039,-592.22,0.00013961,2]
[332981886,1721721043048,-90782.7507962,0.00013962,2]
[332981889,1721721043058,-151.0,0.00013962,2]
[332981892,1721721043068,-235.794442,0.00013962,2]
[332981895,1721721043077,-151.0,0.00013962,2]
[332981898,1721721043087,-235.794442,0.00013962,2]
[332981901,1721721043096,-151.0,0.00013962,2]
[332981904,1721721043107,-217.090106,0.00013962,2]
[332981907,1721721043118,-151.0,0.00013962,2]
[332981910,1721721043128,-217.090106,0.00013962,2]
[332981914,1721721043140,-151.0,0.00013962,2]
[332981917,1721721043149,-168.144898,0.00013962,2]
[332981920,1721721043159,-168.144898,0.00013962,2]
[332981923,1721721043168,-12369.92587035,0.00013962,2]
[332981946,1721721043380,-928.11152429,0.0001212,2]
[332981948,1721721043391,-869.90844653,0.00013962,2]
[332981950,1721721043404,-1833.50367553,0.00013962,2]
[332981952,1721721043415,-1205.51120499,0.00013962,2]
[332981955,1721721043429,-7606.67006341,0.00013962,2]
[332981957,1721721043440,-808.88059479,0.00013962,2]
[332981962,1721721043482,-500.0,0.00013871,2]
[332981964,1721721043491,-8576.02412429,0.00013962,2]
[332982141,1721721045842,-587.53,0.00013871,2]
[332982142,1721721045853,-16537.1504205,0.00013962,2]
[332982143,1721721045896,-2270.90132471,0.00013962,2]
[332982144,1721721046002,-273.37336231,0.00013962,2]
[332982263,1721721632588,200.0,0.00021806,120]
[332982264,1721721692021,200.0,0.00023941,120]
[332982267,1721722009336,-154.74467129,9.999e-05,2]
[332982268,1721722009360,-41.37846713,9.999e-05,2]
[332982269,1721722041367,-161.64568,9.899e-05,2]
[332982270,1721722041388,-113.58834522,9.999e-05,2]
[332982271,1721722041408,-126.57210744,9.999e-05,2]
[332982272,1721722050101,-74.70109656,9.999e-05,2]
[332982273,1721722050125,-158.14890344,9.999e-05,2]
[332982316,1721722232192,-300.0,9.998e-05,2]
[332982318,1721722232204,-300.0,9.998e-05,2]
[332982320,1721722232216,-33.79867857,9.999e-05,2]
[332982323,1721722232226,-206.23731883,9.999e-05,2]
[332982325,1721722232236,-218.09499306,9.999e-05,2]
[332982327,1721722232246,-349.91717604,9.999e-05,2]
[332982402,1721722238212,-1756.39834287,9.999e-05,2]
[332982405,1721722238224,-9874.33571651,9.999e-05,2]
[332982407,1721722238236,-563.8269838,0.00010428,2]
[332982411,1721722238248,-161.64568,0.00010739,2]
[332982414,1721722238261,-1288.6953896,0.00010805,2]
[332982416,1721722238273,-161.64568,0.00010925,2]
[332982419,1721722238286,-420.0,0.00010998,2]
[332982421,1721722238299,-818.684,0.00011075,2]
[332982423,1721722238312,-161.64568,0.00011112,2]
[332982426,1721722238325,-161.64568,0.00011299,2]
[332982428,1721722238336,-9489.1323376,0.00011471,2]
[332982429,1721722238346,-587.0,0.00012098,2]
[332982431,1721722238361,-645.0566162,0.00012136,2]
[332982433,1721722238373,-24890.0,0.00012143,2]
[332982436,1721722238386,-5173.8966656,0.00012548,2]
[332982504,1721722240168,-2952.81297989,0.00012548,2]
[332982505,1721722240182,-281.37379723,0.00012548,2]
[332982506,1721722240193,-721.73817779,0.000129,2]
[332982507,1721722240207,-484.0,0.00013307,2]
[332982508,1721722240219,-482.92916165,0.00013377,2]
[332982528,1721722243138,-300.0,9.899e-05,2]
[332982529,1721722243148,-926.07083835,0.00013377,2]
[332982530,1721722243157,-200.0,0.00013425,2]
[332982531,1721722243166,-712.74,0.00013698,2]
[332982532,1721722243174,-500.0,0.00013698,2]
[332982533,1721722243183,-500.0,0.00013698,2]
[332982534,1721722243193,-500.0,0.00013698,2]
[332982535,1721722243202,-500.0,0.00013698,2]
[332982536,1721722243212,-500.0,0.00013698,2]
[332982537,1721722243221,-3173.63,0.00013698,2]
[332982538,1721722243231,-1124.90817695,0.00013698,2]
[332982545,1721722246204,-266.15182305,0.00013698,2]
[332982546,1721722246215,-27.09693286,0.00013698,2]
[332982555,1721723150160,-1173.81680812,9.16e-05,2]
[332982556,1721723238111,-600.0,9.067e-05,2]
[332982557,1721723238427,-300.0,9.159e-05,2]
[332982558,1721723238463,-300.0,9.159e-05,2]
[332982559,1721723238486,-4649.54775437,9.16e-05,2]
[332982560,1721723245321,-259.19116163,9.067e-05,2]
[332982561,1721723248091,-14.18220068,9.067e-05,2]
[332982562,1721723248115,-273.27258193,9.16e-05,2]
[332982563,1721723251099,-8079.14294279,9.16e-05,2]
[332982566,1721723350162,-300.0,9.159e-05,2]
[332982567,1721723350183,-1909.15043872,9.16e-05,2]
[332982570,1721723371156,-8815.06947407,9.16e-05,2]
[332982571,1721723371180,-744.59840473,9.16e-05,2]
[332982572,1721723371200,-884.7664221,9.4e-05,2]
[332982614,1721723438361,-23.2630728,9.4e-05,2]
[332982615,1721723438371,-1872.3940428,9.991e-05,2]
[332982616,1721723438380,-300.0,9.998e-05,2]
[332982617,1721723438390,-240.55889109,9.999e-05,2]
[332982618,1721723438399,-236.94188495,9.999e-05,2]
[332982619,1721723438409,-157.80316713,9.999e-05,2]
[332982621,1721723438420,-231.49757634,9.999e-05,2]
[332982703,1721723446656,-368.74851771,9.999e-05,2]
[332982704,1721723446666,-131.25148229,9.999e-05,2]
[332982705,1721723446679,-387.81145447,9.999e-05,2]
[332982706,1721723446688,-319.40039305,9.999e-05,2]
[332982707,1721723446698,-180.29524211,9.999e-05,2]
[332982708,1721723446707,-167.25227455,9.999e-05,2]
[332982709,1721723446717,-303.33718372,9.999e-05,2]
[332982710,1721723446726,-159.51098054,9.999e-05,2]
[332982711,1721723446735,-167.84356976,9.999e-05,2]
[332982712,1721723446745,-154.79103211,9.999e-05,2]
[332982713,1721723446757,-162.90193781,9.999e-05,2]
[332982714,1721723446766,-154.79103211,9.999e-05,2]
[332982716,1721723446776,-567.99228217,9.999e-05,2]
[332982718,1721723446785,-531.35557493,9.999e-05,2]
[332982720,1721723446795,-209.65653934,9.999e-05,2]
[332982722,1721723446805,-156.572996,9.999e-05,2]
[332982724,1721723446815,-726.64238482,9.999e-05,2]
[332982726,1721723446827,-533.38063441,9.999e-05,2]
[332982728,1721723446838,-778.87203636,9.999e-05,2]
[332982730,1721723446847,-848.37789621,9.999e-05,2]
[332982732,1721723446857,-160.00381439,9.999e-05,2]
[332982734,1721723446867,-341.69630942,9.999e-05,2]
[332982737,1721723446877,-154.71377951,9.999e-05,2]
[332982738,1721723446886,-154.89267119,9.999e-05,2]
[332982740,1721723446896,-154.89478369,9.999e-05,2]
[332982743,1721723446908,-154.79103211,9.999e-05,2]
[332982745,1721723446920,-910.7764823,9.999e-05,2]
[332982747,1721723446930,-154.85901002,9.999e-05,2]
[332982749,1721723446942,-154.79103211,9.999e-05,2]
[332982752,1721723446953,-196.23272376,9.999e-05,2]
[332982754,1721723446966,-154.72922386,9.999e-05,2]
[332982755,1721723446976,-154.79103211,9.999e-05,2]
[332982756,1721723446988,-663.56673998,9.999e-05,2]
[332982757,1721723446999,-156.65797586,9.999e-05,2]
[332982758,1721723447010,-208.55751505,9.999e-05,2]
[332982759,1721723447022,-199.22147856,9.999e-05,2]
[332982760,1721723447033,-168.033069,0.00010901,2]
[332982761,1721723447043,-886.2,0.00010959,2]
[332982762,1721723447054,-168.033069,0.00010996,2]
[332982763,1721723447063,-420.0,0.00010998,2]
[332982764,1721723447073,-168.033069,0.0001109,2]
[332982765,1721723447083,-168.033069,0.00011185,2]
[332982766,1721723447094,-168.033069,0.0001128,2]
[332982767,1721723447103,-168.033069,0.00011374,2]
[332982768,1721723447113,-168.033069,0.00011469,2]
[332982769,1721723447123,-287.0,0.00012098,2]
[332982770,1721723447132,-293.8031846,0.00013151,2]
[332982771,1721723447141,-913.76232104,0.00013325,2]
[332982772,1721723447151,-35.32823739,0.00013358,2]
[332982778,1721723483410,17537.82382026,0.00011394,14]
[332982781,1721723612845,-1972.40554234,9.8e-05,2]
[332982782,1721723612870,-273.37336231,9.9e-05,2]
[332982783,1721723612893,-300.0,9.998e-05,2]
[332982784,1721723612916,-300.0,9.998e-05,2]
[332982785,1721723612939,-155.63473591,9.999e-05,2]
[332982786,1721723612961,-154.79103211,9.999e-05,2]
[332982787,1721723612990,-276.45170323,9.999e-05,2]
[332982788,1721723613012,-521.35008694,9.999e-05,2]
[332982789,1721723613035,-404.16174305,9.999e-05,2]
[332982790,1721723613057,-247.24658975,9.999e-05,2]
[332982791,1721723613080,-392.37099697,9.999e-05,2]
[332982792,1721723613104,-941.49835413,9.999e-05,2]
[332982793,1721723613128,-193.91150844,9.999e-05,2]
[332982794,1721723613151,-332.15929955,0.0001,2]
[332982795,1721723613176,-1869.74,0.00010959,2]
[332982796,1721723613200,-1558.12,0.00010959,2]
[332982797,1721723613223,-1298.43,0.00010959,2]
[332982798,1721723613249,-185.0,0.00010998,2]
[332982799,1721723618065,11691.88254684,0.00016095,14]
[332982800,1721723618237,273.37336231,9.9e-05,2]
[332982801,1721723620061,663.32815448,9.999e-05,2]
[332982802,1721723622839,55.65352848,0.00010959,2]
[332982803,1721723673698,9743.2354557,0.00013283,14]
[332982804,1721723805455,3027.0581772,0.00016095,14]
[332982810,1721724345471,-923.91285391,9.8e-05,2]
[332982822,1721724560123,-695.28,9.8e-05,2]
[332982826,1721724632529,-79.83932612,9.8e-05,2]
[332982827,1721724632539,-805.6785335,9.999e-05,2]
[332982828,1721724632549,-460.07074342,9.999e-05,2]
[332982829,1721724632559,-567.99228217,9.999e-05,2]
[332982830,1721724632568,-319.40039305,9.999e-05,2]
[332982831,1721724632578,-848.37789621,9.999e-05,2]
[332982832,1721724632588,-180.22904215,9.999e-05,2]
[332982833,1721724632598,-208.7961263,9.999e-05,2]
[332982834,1721724632607,-531.35557493,9.999e-05,2]
[332982835,1721724632617,-403.25052629,9.999e-05,2]
[332982836,1721724632627,-341.5748659,9.999e-05,2]
[332982837,1721724632637,-333.93120663,9.999e-05,2]
[332982838,1721724632648,-156.51893246,9.999e-05,2]
[332982839,1721724632659,-234.17486227,9.999e-05,2]
[332982840,1721724632669,-778.87203636,9.999e-05,2]
[332982841,1721724632678,-154.72922386,9.999e-05,2]
[332982842,1721724632688,-533.38063441,9.999e-05,2]
[332982843,1721724632699,-154.79103211,9.999e-05,2]
[332982844,1721724632708,-162.84649757,9.999e-05,2]
[332982845,1721724632719,-159.94850941,9.999e-05,2]
[332982846,1721724632728,-519.06293676,9.999e-05,2]
[332982847,1721724632740,-156.65797586,9.999e-05,2]
[332982848,1721724632752,-155.02715902,9.999e-05,2]
[332982849,1721724632762,-209.5814502,9.999e-05,2]
[332982850,1721724632771,-726.64238482,9.999e-05,2]
[332982851,1721724632781,-887.31675178,9.999e-05,2]
[332982852,1721724632793,-600.24609405,9.999e-05,2]
[332982853,1721724632802,-389.53,0.00010959,2]
[332982854,1721724632811,-1007.83,0.00010959,2]
[332982856,1721724632820,-839.86,0.00010959,2]
[332982857,1721724632829,-699.88,0.00010959,2]
[332982859,1721724632839,-583.23,0.00010959,2]
[332982861,1721724632848,-486.03,0.00010959,2]
[332982863,1721724632859,-405.02,0.00010959,2]
[332982865,1721724632870,-337.52,0.00010959,2]
[332982868,1721724632880,-281.27,0.00010959,2]
[332982869,1721724632890,-234.39,0.00010959,2]
[332982872,1721724632900,-195.32,0.00010959,2]
[332982874,1721724632909,-162.77,0.00010959,2]
[332982876,1721724632919,-813.87,0.00010959,2]
[332982878,1721724632929,-24900.0,0.00011083,2]
[332982880,1721724632938,-162.911911,0.0001132,2]
[332982882,1721724632947,-162.911911,0.00011355,2]
[332982884,1721724632958,-162.911911,0.0001139,2]
[332982886,1721724632967,-162.911911,0.00011424,2]
[332982888,1721724632977,-162.911911,0.00011459,2]
[332982890,1721724632987,-162.911911,0.00011494,2]
[332982892,1721724632997,-162.911911,0.00011528,2]
[332982894,1721724633008,-162.911911,0.00011563,2]
[332982896,1721724633018,-162.911911,0.00011598,2]
[332982898,1721724633027,-162.911911,0.00011633,2]
[332982900,1721724633037,-162.911911,0.00011667,2]
[332982902,1721724633047,-162.911911,0.00011702,2]
[332982904,1721724633058,-162.911911,0.00011737,2]
[332982906,1721724633067,-162.911911,0.00011771,2]
[332982908,1721724633077,-162.911911,0.00011806,2]
[332982910,1721724633087,-162.911911,0.00011841,2]
[332982913,1721724633097,-162.911911,0.00011875,2]
[332982915,1721724633107,-162.911911,0.0001191,2]
[332982917,1721724633117,-5304.19710114,0.000129,2]
[332982919,1721724633129,-289.18175283,0.00012992,2]
[332982921,1721724633139,-367.35615468,0.00013114,2]
[332982923,1721724633149,-468.02037133,0.00013258,2]
[332982925,1721724633160,-584.67358998,0.00013358,2]
[332982927,1721724633170,-10204.13117948,0.0001338,2]
[332982929,1721724633180,-200.0,0.00013425,2]
[332982931,1721724633190,-2008.27537256,0.00013588,2]
[332982933,1721724633200,-2000.0,0.00013588,2]
[332982935,1721724633210,-2008.27537253,0.00013654,2]
[332982937,1721724633219,-15530.78176381,0.00013676,2]
[332982939,1721724633229,-64657.9472166,0.00013678,2]
[332982941,1721724633241,-195.381096,0.00013688,2]
[332982943,1721724633251,-195.381096,0.00013688,2]
[332982946,1721724633262,-151.330408,0.00013688,2]
[332982948,1721724633272,-151.330408,0.00013688,2]
[332982950,1721724633282,-151.0,0.00013688,2]
[332982952,1721724633292,-387.113041,0.00013688,2]
[332982954,1721724633303,-387.113041,0.00013688,2]
[332982956,1721724633314,-151.0,0.00013688,2]
[332982958,1721724633326,-151.0,0.00013688,2]
[332982960,1721724633337,-151.0,0.00013688,2]
[332982963,1721724633350,-446.228128,0.00013688,2]
[332982965,1721724633361,-446.228128,0.00013688,2]
[332982967,1721724633372,-446.228128,0.00013688,2]
[332982969,1721724633383,-446.228128,0.00013688,2]
[332982971,1721724633392,-212.214997,0.00013688,2]
[332982973,1721724633402,-49167.15684406,0.00013688,2]
[332983104,1721724642049,-1140.23899845,0.00013588,2]
[332983105,1721724642059,-212.214997,0.00013688,2]
[332983106,1721724642068,-178.37797955,0.00013688,2]
[332983107,1721724642082,-47641.38600119,0.00013688,2]
[332983108,1721724642091,-4043.0231755,0.00013689,2]
[332983128,1721724643466,-12760.51980751,0.00013689,2]
[332983129,1721724643525,-15525.43062529,0.00013689,2]
[332983130,1721724643536,-472.90306714,0.00013698,2]
[332983131,1721724643547,-2766.09,0.00013698,2]
[332983132,1721724643558,-500.0,0.00013698,2]
[332983133,1721724643567,-2557.21,0.00013698,2]
[332983134,1721724643578,-2160.63,0.00013698,2]
[332983135,1721724643587,-500.0,0.00013698,2]
[332983136,1721724643597,-519.06,0.00013698,2]
[332983137,1721724643608,-621.26,0.00013698,2]
[332983138,1721724643618,-500.0,0.00013698,2]
[332983139,1721724643629,-500.0,0.00013698,2]
[332983140,1721724643638,-500.0,0.00013698,2]
[332983141,1721724643653,-3298.22,0.00013698,2]
[332983142,1721724643663,-565.7,0.00013698,2]
[332983143,1721724643673,-500.0,0.00013698,2]
[332983144,1721724643682,-500.0,0.00013698,2]
[332983145,1721724643693,-500.0,0.00013698,2]
[332983146,1721724643702,-500.0,0.00013698,2]
[332983147,1721724643711,-379.5999805,0.00013698,2]
[332983148,1721724643721,-509.02108768,0.00013698,2]
[332983149,1721724643732,-500.0,0.00013698,2]
[332983151,1721724643742,-604.81,0.00013698,2]
[332983152,1721724643756,-500.0,0.00013698,2]
[332983154,1721724643767,-500.0,0.00013698,2]
[332983156,1721724643777,-500.0,0.00013698,2]
[332983158,1721724643787,-500.0,0.00013698,2]
[332983160,1721724643796,-500.0,0.00013698,2]
[332983161,1721724643806,-505.28259137,0.00013698,2]
[332983162,1721724643815,-545.20733261,0.00013698,2]
[332983163,1721724643825,-490.86016896,0.00013698,2]
[332983164,1721724643835,-500.0,0.00013698,2]
[332983165,1721724643845,-500.0,0.00013698,2]
[332983166,1721724643855,-461.14205937,0.00013698,2]
[332983167,1721724643865,-500.0,0.00013698,2]
[332983168,1721724643875,-500.0,0.00013698,2]
[332983169,1721724643884,-500.0,0.00013698,2]
[332983170,1721724643894,-500.0,0.00013698,2]
[332983171,1721724643905,-3041.39,0.00013698,2]
[332983172,1721724643915,-500.0,0.00013698,2]
[332983173,1721724643925,-1333.1,0.00013698,2]
[332983174,1721724643935,-500.0,0.00013698,2]
[332983175,1721724643944,-500.0,0.00013698,2]
[332983176,1721724643954,-683.04,0.00013698,2]
[332983177,1721724643963,-500.0,0.00013698,2]
[332983178,1721724643973,-500.0,0.00013698,2]
[332983179,1721724643983,-500.0,0.00013698,2]
[332983180,1721724643992,-575.54574256,0.00013698,2]
[332983181,1721724644006,-500.0,0.00013698,2]
[332983182,1721724644016,-501.27116887,0.00013698,2]
[332983183,1721724644026,-500.0,0.00013698,2]
[332983184,1721724644037,-500.0,0.00013698,2]
[332983185,1721724644047,-500.0,0.00013698,2]
[332983186,1721724644057,-500.0,0.00013698,2]
[332983187,1721724644066,-500.0,0.00013698,2]
[332983188,1721724644077,-500.0,0.00013698,2]
[332983189,1721724644087,-513.78154567,0.00013698,2]
[332983190,1721724644096,-500.0,0.00013698,2]
[332983191,1721724644106,-519.0532503,0.00013698,2]
[332983192,1721724644116,-525.57,0.00013698,2]
[332983193,1721724644126,-500.0,0.00013698,2]
[332983194,1721724644137,-500.0,0.00013698,2]
[332983195,1721724644148,-500.0,0.00013698,2]
[332983196,1721724644160,-500.0,0.00013698,2]
[332983197,1721724644170,-500.0,0.00013698,2]
[332983198,1721724644179,-500.0,0.00013698,2]
[332983199,1721724644188,-515.97,0.00013698,2]
[332983200,1721724644198,-500.0,0.00013698,2]
[332983201,1721724644208,-500.0,0.00013698,2]
[332983202,1721724644218,-500.0,0.00013698,2]
[332983203,1721724644228,-500.0,0.00013698,2]
[332983204,1721724644237,-604.81717721,0.00013698,2]
[332983205,1721724644250,-500.0,0.00013698,2]
[332983206,1721724644259,-500.0,0.00013698,2]
[332983207,1721724644268,-500.0,0.00013698,2]
[332983208,1721724644278,-501.32670427,0.00013698,2]
[332983209,1721724644288,-500.0,0.00013698,2]
[332983210,1721724644298,-500.0,0.00013698,2]
[332983211,1721724644307,-500.0,0.00013698,2]
[332983212,1721724644317,-500.0,0.00013698,2]
[332983213,1721724644327,-500.0,0.00013698,2]
[332983214,1721724644337,-500.0,0.00013698,2]
[332983215,1721724644347,-500.0,0.00013698,2]
[332983216,1721724644357,-500.0,0.00013698,2]
[332983217,1721724644366,-500.0,0.00013698,2]
[332983218,1721724644376,-500.0,0.00013698,2]
[332983219,1721724644386,-500.0,0.00013698,2]
[332983220,1721724644396,-500.0,0.00013698,2]
[332983221,1721724644405,-137.94793421,0.00013698,2]
[332983222,1721724644420,-362.05206579,0.00013698,2]
[332983223,1721724644430,-500.0,0.00013698,2]
[332983224,1721724644439,-500.0,0.00013698,2]
[332983225,1721724644449,-500.0,0.00013698,2]
[332983226,1721724644459,-500.0,0.00013698,2]
[332983227,1721724644468,-500.0,0.00013698,2]
[332983228,1721724644478,-596.58,0.00013698,2]
[332983229,1721724644487,-500.0,0.00013698,2]
[332983230,1721724644498,-500.0,0.00013698,2]
[332983231,1721724644507,-500.0,0.00013698,2]
[332983232,1721724644516,-302.57711097,0.00013698,2]
[332983233,1721724644528,-197.42288903,0.00013698,2]
[332983234,1721724644538,-502.86454454,0.00013698,2]
[332983235,1721724644547,-500.0,0.00013698,2]
[332983236,1721724644557,-283.43296223,0.00013698,2]
[332983237,1721724644568,-20.04066413,0.00013698,2]
[332983238,1721724644578,-502.21410054,0.00013698,2]
[332983239,1721724644587,-500.0,0.00013698,2]
[332983240,1721724644597,-151.296933,0.00013698,2]
[332983241,1721724644607,-168.04410476,0.00013698,2]
[332983242,1721724644616,-151.0,0.00013698,2]
[332983243,1721724644625,-151.0,0.00013698,2]
[332983244,1721724644635,-500.0,0.00013698,2]
[332983245,1721724644645,-500.0,0.00013698,2]
[332983246,1721724644655,-500.0,0.00013698,2]
[332983247,1721724644665,-339.24385605,0.00013698,2]
[332983267,1721724647256,-160.75614395,0.00013698,2]
[332983268,1721724647266,-151.0,0.00013698,2]
[332983269,1721724647451,-500.0,0.00013698,2]
[332983270,1721724647461,-67.17060861,0.00013698,2]
[332983271,1721724647473,-390.43311382,0.00013698,2]
[332983272,1721724647484,-97.85627757,0.00013698,2]
[332983273,1721724647493,-151.0,0.00013698,2]
[332983274,1721724647505,-500.0,0.00013698,2]
[332983275,1721724647514,-212.95583566,0.00013698,2]
[332983276,1721724647525,-287.04416434,0.00013698,2]
[332983277,1721724647535,-500.0,0.00013698,2]
[332983278,1721724647544,-500.0,0.00013698,2]
[332983279,1721724647554,-500.0,0.00013698,2]
[332983280,1721724647564,-500.0,0.00013698,2]
[332983281,1721724647573,-151.0,0.00013698,2]